bitfinex/quotes_BTCUSD_20260104
["timestamp","ask_amount","ask_price","bid_price","bid_amount"]
[1767533492380,0.01097297,91133.0,91123.0,0.06584495]
[1767533492619,0.08779727,91134.0,91124.0,0.01097405]
[1767533492955,0.01097297,91133.0,91123.0,0.06584495]
[1767533493172,0.01097297,91133.0,91129.0,0.0012995]
[1767533493388,0.02196,91134.0,91129.0,0.0012995]
[1767533493585,0.03293285,91134.0,91129.0,0.0012995]
[1767533493789,0.08779714,91134.0,91129.0,0.0012995]
[1767533494187,0.02196,91134.0,91129.0,0.0012995]
[1767533494390,0.03293285,91134.0,91129.0,0.0012995]
[1767533494613,0.02196,91134.0,91129.0,0.0012995]
[1767533494855,0.03293285,91134.0,91129.0,0.0012995]
[1767533495151,0.02196,91133.0,91129.0,0.0012995]
[1767533496315,0.08779791,91133.0,91129.0,0.0012995]
[1767533496542,0.03293297,91133.0,91129.0,0.0012995]
[1767533496738,0.08779784,91133.0,91129.0,0.0012995]
[1767533497160,0.08779784,91133.0,91130.0,0.04604464]
[1767533497377,0.00975784,91133.0,91129.0,0.0012995]
[1767533498399,0.02073081,91133.0,91129.0,0.0012995]
[1767533498852,0.00975784,91133.0,91129.0,0.0012995]
[1767533500035,0.04596041,91132.0,91123.0,0.01584493]
[1767533500262,0.04596041,91132.0,91123.0,0.01097417]
[1767533500392,0.02073081,91133.0,91123.0,0.05487085]
[1767533500591,0.02073081,91133.0,91123.0,0.03173541]
[1767533500794,0.02073081,91133.0,91124.0,0.01097405]
[1767533500999,0.04252065,91133.0,91123.0,0.02091962]
[1767533501201,0.01097309,91132.0,91123.0,0.01097417]
[1767533501956,0.01097309,91132.0,91122.0,0.06584578]
[1767533502146,0.07559593,91133.0,91129.0,0.04604464]
[1767533502396,0.02559593,91133.0,91129.0,0.04604464]
[1767533502788,0.01097309,91132.0,91129.0,0.04604464]
[1767533503398,0.04596041,91131.0,91122.0,0.01097429]
[1767533504012,0.04596041,91131.0,91123.0,0.06584505]
[1767533504629,0.04596041,91131.0,91122.0,0.01097429]
[1767533504630,0.04596041,91131.0,91122.0,0.06584557]
[1767533505266,0.04596041,91131.0,91122.0,0.01097429]
[1767533505800,0.05693362,91131.0,91121.0,0.06584613]
[1767533506233,0.01097321,91131.0,91121.0,0.06584613]
[1767533506440,0.06583857,91132.0,91122.0,0.01097429]
[1767533506897,0.02194522,91131.0,91121.0,0.06584613]
[1767533507198,0.01097345,91129.0,91119.0,0.06584787]
[1767533507622,0.06584049,91130.0,91120.0,0.01097453]
[1767533507854,0.06584049,91130.0,91129.0,0.00061442]
[1767533509077,0.0426527,91132.0,91129.0,0.04665906]
[1767533509293,0.0426527,91132.0,91129.0,0.00061442]
[1767533509294,0.01097309,91132.0,91129.0,0.00061442]
[1767533509502,0.03293273,91135.0,91129.0,0.00061442]
[1767533509678,0.05486566,91132.0,91129.0,0.00061442]
[1767533509888,0.06583875,91132.0,91129.0,0.00061442]
[1767533511769,0.06583875,91132.0,91129.0,0.00056924]
[1767533512709,0.01097321,91131.0,91123.0,0.02348116]
[1767533513763,0.06583941,91131.0,91123.0,0.02348116]
[1767533513964,0.01097333,91130.0,91123.0,0.02348116]
[1767533514750,0.01097345,91129.0,91123.0,0.02348116]
[1767533514978,0.01090462,91129.0,91123.0,0.02348116]
[1767533515608,0.01097345,91129.0,91123.0,0.02348116]
[1767533516034,0.01097357,91128.0,91123.0,0.02348116]
[1767533516237,0.0658409,91129.0,91123.0,0.02348116]
[1767533516450,0.01097477,91118.0,91108.0,0.04619744]
[1767533516659,0.01097477,91118.0,91105.0,0.08781774]
[1767533516660,0.04596041,91116.0,91105.0,0.08781774]
[1767533516864,0.04753685,91116.0,91105.0,0.08781774]
[1767533517079,0.05487493,91117.0,91107.0,0.04604464]
[1767533517293,0.01102229,91118.0,91107.0,0.0109761]
[1767533517568,4.752e-05,91118.0,91108.0,0.01097598]
[1767533517749,0.02308361,91119.0,91116.0,0.00061442]
[1767533518008,0.03893189,91120.0,91119.0,0.04604464]
[1767533518213,0.01097465,91119.0,91116.0,0.04665906]
[1767533518420,0.0548745,91117.0,91116.0,0.00061442]
[1767533518844,0.0548745,91117.0,91116.0,1e-08]
[1767533519254,0.01097574,91110.0,91101.0,0.04604464]
[1767533519375,0.03293538,91113.0,91101.0,0.05706898]
[1767533519595,0.0109755,91112.0,91103.0,0.04604464]
[1767533520199,0.04551801,91112.0,91101.0,0.06590801]
[1767533520460,0.08781284,91113.0,91102.0,0.0459066]
[1767533520665,0.05488117,91106.0,91102.0,0.0459066]
[1767533520868,0.06585684,91107.0,91105.0,0.0459066]
[1767533521080,0.01097586,91109.0,91107.0,0.0459066]
[1767533521458,0.01097574,91110.0,91107.0,0.0459066]
[1767533521686,0.06585376,91111.0,91107.0,0.0459066]
[1767533521891,0.01097574,91110.0,91107.0,0.0459066]
[1767533522091,0.01097574,91110.0,91101.0,0.0459066]
[1767533522299,0.01097634,91105.0,91101.0,0.0459066]
[1767533522710,0.01097622,91106.0,91101.0,0.0459066]
[1767533523114,0.01097634,91105.0,91101.0,0.0459066]
[1767533523492,0.0109761,91107.0,91101.0,0.0459066]
[1767533524279,0.01097598,91108.0,91101.0,0.0459066]
[1767533524464,0.0109761,91107.0,91101.0,0.0459066]
[1767533524667,0.06585662,91107.0,91101.0,0.0459066]
[1767533525273,0.01097634,91105.0,91101.0,0.0459066]
[1767533525469,0.06585742,91106.0,91101.0,0.0459066]
[1767533525470,0.01097622,91106.0,91101.0,0.0459066]
[1767533526250,0.0459508,91106.0,91101.0,0.0459066]
[1767533526428,0.05488353,91102.0,91101.0,0.0459066]
[1767533526678,0.032,91143.0,91095.0,0.01097755]
[1767533526897,0.032,91143.0,91090.0,0.0001528]
[1767533526898,0.01097333,91130.0,91117.0,0.0109749]
[1767533527120,0.03368161,91132.0,91102.0,0.010999]
[1767533527121,0.03368161,91132.0,91119.0,0.01097465]
[1767533527364,0.02196,91131.0,91123.0,0.01097417]
[1767533527585,0.03368161,91132.0,91124.0,0.01097405]
[1767533527795,0.05464261,91132.0,91126.0,0.01097381]
[1767533528006,0.05464261,91132.0,91124.0,0.01097405]
[1767533528214,0.05464261,91132.0,91121.0,0.06584641]
[1767533528420,0.05464261,91132.0,91122.0,0.06584524]
[1767533528628,0.05464261,91132.0,91123.0,0.01097417]
[1767533529002,0.05464261,91132.0,91122.0,0.01097429]
[1767533529148,0.0656157,91132.0,91122.0,0.01097429]
[1767533529350,0.05464261,91132.0,91123.0,0.01097417]
[1767533529751,0.05464261,91132.0,91122.0,0.0658455]
[1767533529752,0.05464261,91132.0,91124.0,0.01097405]
[1767533529993,0.05464261,91132.0,91123.0,0.01097417]
[1767533530202,0.05464261,91132.0,91124.0,0.01097405]
[1767533530406,0.05464261,91132.0,91123.0,0.06584483]
[1767533531177,0.05464261,91132.0,91123.0,0.01097417]
[1767533531863,0.05464261,91132.0,91125.0,0.01097393]
[1767533532320,0.02196,91132.0,91125.0,0.01097393]
[1767533532738,0.02196,91132.0,91124.0,0.06584433]
[1767533533017,0.02196,91131.0,91124.0,0.06584433]
[1767533533231,0.02196,91131.0,91125.0,0.01097393]
[1767533533682,0.02196,91131.0,91124.0,0.01097405]
[1767533534157,0.02196,91131.0,91123.0,0.06584503]
[1767533534158,0.02925227,91130.0,91123.0,0.06584503]
[1767533534375,0.02925227,91130.0,91125.0,0.06584359]
[1767533535051,0.02925227,91130.0,91125.0,0.01097393]
[1767533535466,0.02925227,91130.0,91125.0,0.01092875]
[1767533535880,0.04551801,91129.0,91123.0,0.01420909]
[1767533536087,0.04551801,91129.0,91124.0,0.05487004]
[1767533536529,0.04551801,91129.0,91125.0,0.05486964]
[1767533536964,0.04551801,91129.0,91125.0,0.06584357]
[1767533537763,0.04551801,91129.0,91126.0,0.06584286]
[1767533538204,0.03268261,91128.0,91127.0,0.05486848]
[1767533538407,0.05485635,91148.0,91135.0,0.01097273]
[1767533538634,0.02196,91142.0,91140.0,0.0459066]
[1767533538838,0.000999,91140.0,91135.0,0.0459066]
[1767533538974,0.02196,91142.0,91135.0,0.0459066]
[1767533540979,0.01097225,91139.0,91135.0,0.0459066]
[1767533541185,0.01097213,91140.0,91135.0,0.0459066]
[1767533541384,0.01097213,91140.0,91135.0,0.02095711]
[1767533541604,0.01097201,91141.0,91135.0,0.02095711]
[1767533542224,0.01097213,91140.0,91135.0,0.02095711]
[1767533542426,0.01097201,91141.0,91135.0,0.02095711]
[1767533542666,0.01097213,91140.0,91135.0,0.02095711]
[1767533542915,0.06583286,91140.0,91135.0,0.02095711]
[1767533543125,0.01097213,91140.0,91135.0,0.02095711]
[1767533543332,0.06583257,91141.0,91135.0,0.02095711]
[1767533543535,0.03293189,91142.0,91135.0,0.02095711]
[1767533543752,0.08779139,91142.0,91135.0,0.02095711]
[1767533544367,0.01097201,91141.0,91130.0,0.06583969]
[1767533544574,0.08779148,91142.0,91131.0,0.0459066]
[1767533544774,0.01097213,91140.0,91131.0,0.0459066]
[1767533544978,0.0658332,91141.0,91131.0,0.0459066]
[1767533545185,0.01097201,91141.0,91131.0,0.05687981]
[1767533545384,0.03293189,91142.0,91132.0,0.0459066]
[1767533545601,0.01097201,91141.0,91132.0,0.0459066]
[1767533545806,0.08779152,91142.0,91132.0,0.0459066]
[1767533546008,0.01097201,91141.0,91132.0,0.0459066]
[1767533546416,0.03293189,91142.0,91132.0,0.0459066]
[1767533546621,0.02196,91142.0,91132.0,0.05687969]
[1767533547218,0.07681956,91142.0,91132.0,0.0459066]
[1767533547390,0.03293189,91142.0,91132.0,0.05687969]
[1767533548132,0.03293189,91142.0,91132.0,0.0459066]
[1767533548333,0.01097201,91141.0,91132.0,0.0459066]
[1767533548541,0.02196,91142.0,91132.0,0.11174461]
[1767533548758,0.02196,91142.0,91138.0,0.0459066]
[1767533548964,0.020961,91142.0,91138.0,0.0459066]
[1767533551365,0.02087062,91142.0,91133.0,0.06583774]
[1767533551575,0.02087062,91142.0,91134.0,0.01097285]
[1767533551782,0.02087062,91142.0,91135.0,0.01097273]
[1767533551987,0.02087062,91142.0,91134.0,0.01097285]
[1767533552193,0.02087062,91142.0,91134.0,0.06583706]
[1767533552404,0.03255462,91142.0,91133.0,0.06583774]
[1767533552625,0.03255462,91142.0,91134.0,0.01097285]
[1767533552818,0.03255462,91142.0,91134.0,0.06583704]
[1767533553252,0.03255462,91142.0,91135.0,0.01097273]
[1767533553443,0.03255462,91142.0,91134.0,0.06583704]
[1767533553870,0.03255462,91142.0,91135.0,0.01097273]
[1767533554302,0.03255462,91142.0,91134.0,0.06583704]
[1767533554715,0.03255462,91142.0,91135.0,0.01097273]
[1767533555127,0.03255462,91142.0,91134.0,0.06583704]
[1767533555549,0.03255462,91142.0,91135.0,0.01097273]
[1767533556166,0.03255462,91142.0,91134.0,0.06583704]
[1767533557091,0.03255462,91142.0,91135.0,0.0461227]
[1767533557225,0.03255462,91142.0,91135.0,0.05709543]
[1767533557586,0.03255462,91142.0,91135.0,0.0461227]
[1767533558320,0.03255462,91142.0,91135.0,0.05709543]
[1767533558558,0.03255462,91142.0,91135.0,0.0461227]
[1767533560008,0.06582922,91145.0,91142.0,0.0461227]
[1767533560250,0.02196,91144.0,91135.0,0.06583613]
[1767533560475,0.02196,91144.0,91135.0,0.11195883]
[1767533560673,0.02196,91143.0,91135.0,0.11195883]
[1767533561640,0.02196,91143.0,91135.0,0.0461227]
[1767533564934,0.03293176,91143.0,91135.0,0.0461227]
[1767533566273,0.03293176,91143.0,91135.0,0.02124327]
[1767533566826,0.02196,91143.0,91135.0,0.02124327]
[1767533567677,0.02196,91143.0,91136.0,0.0461227]
[1767533569657,0.0109714,91146.0,91138.0,0.0461227]
[1767533569869,0.06582824,91147.0,91138.0,0.0461227]
[1767533570491,0.0548576,91146.0,91138.0,0.0461227]
[1767533570936,0.01097164,91144.0,91134.0,0.01097285]
[1767533571147,0.05485767,91145.0,91135.0,0.00685585]
[1767533571148,0.01097152,91145.0,91135.0,0.00685585]
[1767533571566,0.01097152,91145.0,91135.0,0.01782858]
[1767533571567,0.01097164,91144.0,91135.0,0.01782858]
[1767533571766,0.06582953,91146.0,91136.0,0.01097261]
[1767533572046,0.0109714,91146.0,91136.0,0.01097261]
[1767533572246,0.01097152,91145.0,91135.0,0.01782858]
[1767533572460,0.0109714,91146.0,91136.0,0.06583564]
[1767533572690,0.06582824,91147.0,91136.0,0.06583564]
[1767533573195,0.0109714,91146.0,91136.0,0.06583564]
[1767533574343,0.0658285,91146.0,91134.0,0.01097285]
[1767533574552,0.01097152,91145.0,91135.0,0.01097273]
[1767533575291,0.0658285,91146.0,91136.0,0.01097261]
[1767533575536,0.01097152,91145.0,91136.0,0.01097261]
[1767533575775,0.03293116,91148.0,91136.0,0.01097261]
[1767533575921,0.03293116,91148.0,91137.0,0.01782834]
[1767533576121,0.03293116,91148.0,91138.0,0.01097237]
[1767533576329,0.01097128,91147.0,91137.0,0.01782834]
[1767533576554,0.01097128,91147.0,91137.0,0.07269027]
[1767533576882,0.01097128,91147.0,91137.0,0.01782834]
[1767533577104,0.03417472,91147.0,91134.0,0.0219457]
[1767533577259,0.0004,91151.0,91133.0,0.02196]
[1767533577260,0.02196,91150.0,91141.0,0.05709471]
[1767533577465,0.03293092,91150.0,91141.0,0.0461227]
[1767533577822,0.03293092,91150.0,91141.0,0.05709471]
[1767533578030,0.02196,91150.0,91141.0,0.06583188]
[1767533578265,0.02196,91150.0,91142.0,0.0461227]
[1767533579119,0.02196,91150.0,91143.0,0.05709446]
[1767533579325,0.0004,91151.0,91147.0,0.0461227]
[1767533579481,0.0004,91151.0,91147.0,0.02300053]
[1767533579701,0.0004,91151.0,91144.0,0.01097164]
[1767533580020,0.0004,91151.0,91143.0,0.06583018]
[1767533580558,0.00050831,91151.0,91144.0,0.01097164]
[1767533581003,0.00050831,91151.0,91142.0,0.0461227]
[1767533581004,0.000999,91144.0,91142.0,0.0461227]
[1767533581217,0.05972039,91150.0,91140.0,0.07682059]
[1767533581421,0.00050831,91151.0,91139.0,0.00121539]
[1767533581620,0.00050831,91151.0,91142.0,0.01097189]
[1767533581863,0.00050831,91151.0,91139.0,0.00121539]
[1767533581864,0.01097092,91150.0,91144.0,0.0006579]
[1767533582066,0.01097116,91148.0,91142.0,0.04821132]
[1767533582181,0.01147911,91151.0,91142.0,0.04821132]
[1767533582391,0.06582631,91149.0,91142.0,0.04821132]
[1767533582589,0.01097116,91148.0,91139.0,0.00121539]
[1767533583028,0.0109714,91146.0,91139.0,0.00121539]
[1767533583184,0.06582878,91146.0,91139.0,0.00121539]
[1767533583401,0.06582888,91147.0,91140.0,0.04821132]
[1767533583620,0.01097116,91148.0,91140.0,0.04821132]
[1767533584261,0.06582668,91149.0,91140.0,0.04821132]
[1767533584719,0.01097104,91149.0,91140.0,0.05918345]
[1767533585131,0.01097104,91149.0,91140.0,0.04821132]
[1767533585469,0.01097116,91148.0,91140.0,0.04821132]
[1767533585647,0.01097128,91147.0,91140.0,0.04821132]
[1767533586023,0.0109714,91146.0,91140.0,0.04821132]
[1767533586925,0.06582772,91147.0,91140.0,0.04821132]
[1767533587111,0.0109714,91146.0,91140.0,0.04821132]
[1767533587462,0.06582772,91147.0,91140.0,0.04821132]
[1767533587620,0.0109714,91146.0,91140.0,0.04821132]
[1767533588027,0.06582772,91147.0,91140.0,0.04821132]
[1767533588618,0.01097116,91148.0,91140.0,0.04821132]
[1767533589810,0.00050831,91151.0,91149.0,0.04821132]
[1767533590617,0.01633259,91152.0,91143.0,0.04821132]
[1767533590823,0.06582373,91153.0,91147.0,0.04821132]
[1767533591026,0.04874947,91155.0,91142.0,0.01097189]
[1767533591227,0.05971979,91155.0,91144.0,0.04915693]
[1767533591948,0.05971979,91155.0,91146.0,0.0109714]
[1767533592158,0.05971979,91155.0,91145.0,0.06582915]
[1767533592569,0.05485282,91153.0,91142.0,0.01097189]
[1767533592782,0.06582338,91153.0,91144.0,0.01097164]
[1767533592977,0.06582338,91153.0,91145.0,0.04821132]
[1767533594366,0.01097068,91152.0,91145.0,0.04821132]
[1767533594515,0.06582338,91153.0,91145.0,0.04821132]
[1767533594695,0.06582338,91153.0,91144.0,0.01097164]
[1767533594904,0.06582464,91152.0,91142.0,0.00010831]
[1767533595112,0.01097104,91149.0,91142.0,0.00010831]
[1767533595340,0.06582605,91150.0,91142.0,0.00010831]
[1767533596745,0.06582605,91150.0,91142.0,0.04831963]
[1767533597779,0.0109708,91151.0,91142.0,0.05929152]
[1767533598098,0.05485392,91152.0,91142.0,0.05929152]
[1767533598734,0.06582446,91153.0,91144.0,0.04821132]
[1767533599092,0.06582446,91153.0,91144.0,0.05918296]
[1767533599521,0.06582446,91153.0,91144.0,0.04821132]
[1767533599788,0.06582446,91153.0,91144.0,0.05918296]
[1767533599991,0.01097032,91155.0,91146.0,0.04821132]
[1767533600593,0.08778134,91156.0,91146.0,0.04821132]
[1767533600795,0.08778134,91156.0,91147.0,0.04821132]
[1767533600995,0.01097032,91155.0,91147.0,0.04821132]
[1767533601960,0.06582243,91155.0,91147.0,0.04821132]
[1767533602343,0.01097056,91153.0,91147.0,0.04821132]
[1767533603253,0.01097092,91150.0,91147.0,0.04821132]
[1767533604051,0.01097056,91153.0,91150.0,0.04821132]
[1767533604307,0.01097044,91154.0,91150.0,0.04921032]
[1767533604449,0.01097044,91154.0,91150.0,0.04821132]
[1767533604906,0.06582203,91155.0,91150.0,0.04821132]
[1767533605110,0.06582268,91154.0,91150.0,0.04821132]
[1767533606085,0.01097056,91153.0,91150.0,0.0481672]
[1767533607493,0.06582391,91153.0,91150.0,0.03532657]
[1767533608742,0.0658237,91154.0,91150.0,0.03532657]
[1767533609587,0.01097032,91155.0,91150.0,0.03532657]
[1767533609931,0.06582201,91155.0,91150.0,0.03532657]
[1767533610130,0.01097032,91155.0,91150.0,0.01221555]
[1767533610354,0.01097032,91155.0,91146.0,0.0109714]
[1767533610566,0.01097032,91155.0,91145.0,0.11575519]
[1767533610740,0.01097044,91154.0,91145.0,0.11575519]
[1767533611124,0.06582213,91155.0,91145.0,0.11575519]
[1767533611334,0.01097008,91157.0,91155.0,0.000999]
[1767533611542,0.02196,91156.0,91155.0,0.000999]
[1767533611753,0.0001528,91159.0,91150.0,0.01097092]
[1767533611966,0.02196,91158.0,91150.0,0.01097092]
[1767533612169,0.02196,91158.0,91149.0,0.11575181]
[1767533612307,0.02196,91158.0,91150.0,0.01097092]
[1767533612512,0.02196,91158.0,91149.0,0.11575181]
[1767533612832,0.02196,91158.0,91150.0,0.01097092]
[1767533613362,0.06582051,91157.0,91149.0,0.04992606]
[1767533613569,0.01097008,91157.0,91149.0,0.04992606]
[1767533613790,0.01097032,91155.0,91149.0,0.04992606]
[1767533613998,0.01097032,91155.0,91142.0,0.0110802]
[1767533613999,0.01097044,91154.0,91143.0,0.04794309]
[1767533614206,0.01097044,91154.0,91144.0,0.01097164]
[1767533614207,0.01097056,91153.0,91144.0,0.01097164]
[1767533614643,0.06582304,91154.0,91144.0,0.05485795]
[1767533615092,0.01097056,91153.0,91143.0,0.11377332]
[1767533615306,0.01097044,91154.0,91144.0,0.04794309]
[1767533615513,0.03592183,91151.0,91143.0,0.06583053]
[1767533615715,0.03592183,91151.0,91143.0,0.01097176]
[1767533615919,0.03592183,91151.0,91144.0,0.01097164]
[1767533616145,0.03592183,91151.0,91143.0,0.06583052]
[1767533616345,0.03592183,91151.0,91142.0,0.06583124]
[1767533617225,0.03592183,91151.0,91143.0,0.01097176]
[1767533617634,0.01097068,91152.0,91144.0,0.04794309]
[1767533617837,0.06582344,91153.0,91148.0,0.04794309]
[1767533618719,0.01097008,91157.0,91153.0,0.04794309]
[1767533618926,0.07681102,91156.0,91148.0,0.04794309]
[1767533619125,0.08778122,91156.0,91148.0,0.04805134]
[1767533619592,0.01097032,91155.0,91148.0,0.04805134]
[1767533619881,0.08778122,91156.0,91148.0,0.04805134]
[1767533620466,0.08778122,91156.0,91148.0,0.00010825]
[1767533620683,0.00835086,91156.0,91148.0,0.06593464]
[1767533620852,0.02196,91156.0,91149.0,0.04794309]
[1767533621059,0.03293008,91157.0,91149.0,0.04794309]
[1767533621265,0.02196,91157.0,91149.0,0.04794309]
[1767533622227,0.03293008,91157.0,91149.0,0.04794309]
[1767533622939,0.03293008,91157.0,91148.0,0.01107941]
[1767533623553,0.03293008,91157.0,91149.0,0.01097104]
[1767533623554,0.02196,91157.0,91149.0,0.01097104]
[1767533623778,0.03293008,91157.0,91148.0,0.06593515]
[1767533623977,0.03293008,91157.0,91148.0,0.01107941]
[1767533624134,0.03293008,91157.0,91148.0,0.0659352]
[1767533625174,0.02196,91157.0,91149.0,0.01097104]
[1767533625632,0.03293008,91157.0,91148.0,0.0659352]
[1767533626133,0.02196,91157.0,91149.0,0.01097104]
[1767533626842,0.02196,91157.0,91148.0,0.04281685]
[1767533627088,0.03293008,91157.0,91148.0,0.05378801]
[1767533627493,0.01096996,91158.0,91149.0,0.01097104]
[1767533627696,0.01096996,91158.0,91149.0,0.05891413]
[1767533627897,0.02196,91157.0,91149.0,0.05891413]
[1767533629040,0.02196,91157.0,91149.0,0.11376912]
[1767533629641,0.01096996,91158.0,91150.0,0.04794309]
[1767533629856,0.03293008,91157.0,91150.0,0.04794309]
[1767533630105,0.02196,91157.0,91150.0,0.04794309]
[1767533630304,0.04671196,91158.0,91153.0,0.0658223]
[1767533630507,0.04671196,91158.0,91150.0,0.0658244]
[1767533630666,0.04671196,91158.0,91151.0,0.0109708]
[1767533631031,0.04671196,91158.0,91135.0,0.04794309]
[1767533631229,0.04677531,91158.0,91154.0,0.0316287]
[1767533631447,6.335e-05,91158.0,91154.0,0.04259914]
[1767533632250,6.335e-05,91158.0,91154.0,0.01097044]
[1767533632458,6.335e-05,91158.0,91153.0,0.06582325]
[1767533633059,6.335e-05,91158.0,91154.0,0.05891353]
[1767533633439,0.02196,91161.0,91159.0,0.04794309]
[1767533633617,0.01096924,91164.0,91155.0,0.01097032]
[1767533633875,0.02196,91163.0,91156.0,0.00975505]
[1767533634080,0.02196,91163.0,91155.0,0.06582151]
[1767533635095,0.02196,91163.0,91156.0,0.0109702]
[1767533635295,0.02196,91163.0,91155.0,0.06582151]
[1767533635499,0.02196,91163.0,91156.0,0.0109702]
[1767533635763,0.02196,91163.0,91158.0,0.06581974]
[1767533636173,0.02196,91164.0,91163.0,0.000999]
[1767533636394,0.0004,91167.0,91160.0,0.04794309]
[1767533636829,0.0004,91167.0,91158.0,0.06581861]
[1767533637000,0.0004,91167.0,91159.0,0.06581892]
[1767533638068,0.0004,91167.0,91159.0,0.04066485]
[1767533638487,0.0004,91167.0,91160.0,0.01096972]
[1767533638611,0.0004,91167.0,91160.0,0.06581817]
[1767533638815,0.0004,91167.0,91160.0,0.01096972]
[1767533639049,0.0004,91167.0,91161.0,0.0109696]
[1767533639697,0.0004,91167.0,91162.0,0.01096948]
[1767533639871,0.0004,91167.0,91161.0,0.0109696]
[1767533639872,0.0004,91167.0,91161.0,0.06581721]
[1767533640286,0.0004,91167.0,91163.0,0.01096936]
[1767533640483,0.0004,91167.0,91164.0,0.01096924]
[1767533640735,0.0004,91167.0,91161.0,0.06581712]
[1767533641286,0.0004,91167.0,91162.0,0.05484717]
[1767533641488,0.0004,91167.0,91163.0,0.01096936]
[1767533642230,0.0004,91167.0,91164.0,0.01096924]
[1767533642587,0.02196,91169.0,91164.0,0.01092512]
[1767533642858,0.02196,91169.0,91163.0,0.06581571]
[1767533643882,0.02196,91169.0,91164.0,0.01096924]
[1767533644504,0.02196,91169.0,91165.0,0.01096912]
[1767533644721,0.01152047,91177.0,91176.0,0.04913724]
[1767533644931,0.02196,91177.0,91173.0,0.0490372]
[1767533645348,0.03292767,91177.0,91173.0,0.0490372]
[1767533645563,0.06580678,91176.0,91173.0,0.0490372]
[1767533646163,0.05483984,91175.0,91173.0,0.0490372]
[1767533646753,0.01096779,91176.0,91173.0,0.02593849]
[1767533647590,0.01096779,91176.0,91166.0,0.06581348]
[1767533647591,0.0004,91180.0,91171.0,0.06580992]
[1767533647797,0.04862683,91179.0,91171.0,0.06580992]
[1767533648202,0.0004,91180.0,91174.0,0.01096803]
[1767533648405,0.0004,91180.0,91177.0,0.06580563]
[1767533648609,0.02196,91187.0,91179.0,0.04913724]
[1767533648853,0.02232099,91187.0,91180.0,0.01096731]
[1767533649073,0.02232099,91187.0,91179.0,0.06010467]
[1767533649284,0.02232099,91187.0,91180.0,0.01096731]
[1767533649487,0.02232099,91187.0,91176.0,0.01096779]
[1767533649488,0.04862683,91186.0,91163.0,0.08203019]
[1767533649692,0.02232099,91187.0,91179.0,0.04648556]
[1767533649893,0.02232099,91187.0,91180.0,0.01096731]
[1767533650069,0.00036099,91187.0,91180.0,0.01096731]
[1767533650272,0.00036099,91187.0,91180.0,0.04913724]
[1767533650673,0.00036099,91187.0,91179.0,0.04648556]
[1767533650874,0.00036099,91187.0,91180.0,0.01096731]
[1767533651053,0.08155306,91189.0,91179.0,0.04648556]
[1767533651054,0.04612645,91189.0,91188.0,0.04913724]
[1767533651255,0.01096539,91196.0,91189.0,0.04902901]
[1767533651484,0.01096539,91196.0,91189.0,0.04803001]
[1767533651686,0.01096515,91198.0,91188.0,0.01096635]
[1767533651886,0.01096503,91199.0,91189.0,0.00059825]
[1767533652059,0.01096539,91196.0,91187.0,0.01096647]
[1767533652275,0.01096515,91198.0,91187.0,0.06579849]
[1767533652475,0.01096515,91198.0,91194.0,0.13166557]
[1767533652726,0.00952906,91195.0,91194.0,0.13166557]
[1767533653258,0.00853006,91195.0,91194.0,0.13166557]
[1767533653466,0.03049006,91200.0,91194.0,0.13166557]
[1767533653873,0.07067367,91201.0,91194.0,0.13166557]
[1767533654103,0.04862683,91200.0,91194.0,0.07313551]
[1767533655005,0.08163846,91201.0,91194.0,0.07313551]
[1767533655292,0.08163846,91201.0,91192.0,0.01096587]
[1767533655479,0.08163846,91201.0,91193.0,0.01096575]
[1767533655685,0.05967846,91201.0,91192.0,0.01096587]
[1767533655817,0.05967846,91201.0,91193.0,0.01096575]
[1767533656043,0.03292467,91202.0,91193.0,0.01096575]
[1767533656242,0.01096479,91201.0,91192.0,0.06579506]
[1767533656449,0.06578842,91203.0,91197.0,0.04913724]
[1767533656665,0.01096443,91204.0,91197.0,0.04913724]
[1767533656868,0.0004,91205.0,91197.0,0.04913724]
[1767533657071,0.01096443,91204.0,91195.0,0.01096551]
[1767533657747,0.0001528,91213.0,91204.0,0.000999]
[1767533658073,0.04862683,91211.0,91204.0,0.01096443]
[1767533658299,0.04862683,91211.0,91202.0,0.05482289]
[1767533658527,0.04862683,91210.0,91199.0,0.21930065]
[1767533658733,0.04862683,91210.0,91202.0,0.01096467]
[1767533658905,0.04862683,91210.0,91203.0,0.01096455]
[1767533659153,0.0001528,91213.0,91204.0,0.01096443]
[1767533659355,0.01096358,91211.0,91202.0,0.01096467]
[1767533659516,0.04862683,91210.0,91202.0,0.01096467]
[1767533660092,0.01096395,91208.0,91196.0,0.02196]
[1767533660296,0.01096395,91208.0,91196.0,0.07109724]
[1767533660297,0.21929049,91204.0,91196.0,0.07109724]
[1767533660656,0.05482631,91198.0,91187.0,0.01096647]
[1767533660940,0.05482631,91198.0,91188.0,0.02196]
[1767533660941,0.04862683,91198.0,91188.0,0.02196]
[1767533661154,0.06579266,91196.0,91193.0,0.04913724]
[1767533661362,0.06579237,91196.0,91189.0,0.04913724]
[1767533661585,0.06578165,91195.0,91189.0,0.04913724]
[1767533662002,0.06578165,91195.0,91188.0,0.02196]
[1767533662216,0.06578165,91195.0,91182.0,0.01096707]
[1767533662448,0.01096683,91184.0,91168.0,0.01096876]
[1767533662662,0.02196,91194.0,91170.0,0.04913724]
[1767533662663,0.06580694,91176.0,91170.0,0.04913724]
[1767533662902,0.21934826,91180.0,91163.0,0.01112216]
[1767533663108,0.24130095,91183.0,91168.0,0.04913724]
[1767533663280,0.01096827,91172.0,91168.0,0.04913724]
[1767533663484,0.01096803,91174.0,91168.0,0.04913724]
[1767533663485,0.06580847,91174.0,91168.0,0.04913724]
[1767533663693,0.06580919,91173.0,91168.0,0.04913724]
[1767533663858,0.01096827,91172.0,91168.0,0.04913724]
[1767533664064,0.00492438,91172.0,91163.0,0.0001528]
[1767533664274,0.00492438,91172.0,91163.0,0.01112216]
[1767533664481,0.13634527,91170.0,91163.0,0.0001528]
[1767533664690,0.12537675,91170.0,91162.0,0.00050373]
[1767533665000,0.07674992,91170.0,91163.0,0.01096936]
[1767533665595,0.04762783,91169.0,91164.0,0.05484621]
[1767533665994,0.07674992,91170.0,91166.0,0.010969]
[1767533666315,0.04862683,91175.0,91166.0,0.010969]
[1767533666509,0.06580716,91176.0,91167.0,0.04913724]
[1767533666717,0.04862683,91175.0,91165.0,0.06581439]
[1767533666918,0.05959474,91175.0,91166.0,0.010969]
[1767533667114,0.04862683,91173.0,91165.0,0.06581439]
[1767533667321,0.04862683,91173.0,91166.0,0.010969]
[1767533667548,0.04862683,91173.0,91167.0,0.06581328]
[1767533667755,0.04862683,91173.0,91168.0,0.01096876]
[1767533668171,0.04862683,91173.0,91169.0,0.06581178]
[1767533668624,0.04862683,91173.0,91168.0,0.06581252]
[1767533668839,0.01096755,91178.0,91168.0,0.06581252]
[1767533669041,0.01096755,91178.0,91169.0,0.01096864]
[1767533669293,0.01096755,91178.0,91168.0,0.06581252]
[1767533669502,0.06580468,91179.0,91173.0,0.04913724]
[1767533670120,0.04862683,91175.0,91169.0,0.01096864]
[1767533670293,0.04862683,91175.0,91167.0,0.01096888]
[1767533670912,0.04862683,91175.0,91170.0,0.01096852]